[Event "*** Titled Tuesday 3|2 Blitz"]
[Site "Chess.com"]
[Date "2017.05.02"]
[Round "4"]
[White "Olkaa"]
[Black "platy3"]
[Result "0-1"]
[WhiteElo "2492"]
[BlackElo "2635"]
[TimeControl "180+2"]
[EndTime "13:50:19 PDT"]
[Termination "platy3 won on time"]

1. e4 {[%clk 0:03:02]} 1... c5 {[%clk 0:03:00.1]} 2. Nf3 {[%clk 0:03:02.5]} 2...
e6 {[%clk 0:02:58.8]} 3. d4 {[%clk 0:03:03.2]} 3... cxd4 {[%clk 0:02:59.7]} 4.
Nxd4 {[%clk 0:03:04.3]} 4... Nc6 {[%clk 0:03:01.6]} 5. Nc3 {[%clk 0:03:05.1]}
5... Qc7 {[%clk 0:03:00.4]} 6. Be3 {[%clk 0:03:05.6]} 6... a6 {[%clk 0:03:00.3]}
7. Qf3 {[%clk 0:03:05.8]} 7... Nf6 {[%clk 0:02:54.5]} 8. O-O-O {[%clk
0:03:04.2]} 8... Ne5 {[%clk 0:02:55.6]} 9. Qg3 {[%clk 0:03:01.4]} 9... b5 {[%clk
0:02:57.1]} 10. f4 {[%clk 0:02:58.5]} 10... Neg4 {[%clk 0:02:58.5]} 11. e5
{[%clk 0:02:40.6]} 11... Nxe3 {[%clk 0:02:56.7]} 12. Qxe3 {[%clk 0:02:40.5]}
12... b4 {[%clk 0:02:54.1]} 13. Ncb5 {[%clk 0:02:15.9]} 13... axb5 {[%clk
0:02:42]} 14. Nxb5 {[%clk 0:02:16.5]} 14... Qc6 {[%clk 0:02:34.9]} 15. exf6
{[%clk 0:02:16.4]} 15... gxf6 {[%clk 0:02:17.8]} 16. Kb1 {[%clk 0:01:51.9]}
16... Bc5 {[%clk 0:02:01.3]} 17. Qg3 {[%clk 0:01:39.1]} 17... Kf8 {[%clk
0:01:20.5]} 18. f5 {[%clk 0:01:24]} 18... d5 {[%clk 0:00:53.9]} 19. fxe6 {[%clk
0:01:11.5]} 19... Bxe6 {[%clk 0:00:55.8]} 20. Nd4 {[%clk 0:01:07.6]} 20... Qa4
{[%clk 0:00:51.8]} 21. Qb3 {[%clk 0:01:06.1]} 21... Rg8 {[%clk 0:00:47]} 22. g3
{[%clk 0:01:00.2]} 22... Rg4 {[%clk 0:00:41.2]} 23. Nxe6+ {[%clk 0:00:53]} 23...
fxe6 {[%clk 0:00:43.1]} 24. Bh3 {[%clk 0:00:51.6]} 24... Re4 {[%clk 0:00:43.7]}
25. Rhe1 {[%clk 0:00:49.4]} 25... Qxb3 {[%clk 0:00:42]} 26. axb3 {[%clk
0:00:49]} 26... f5 {[%clk 0:00:38.5]} 27. Bg2 {[%clk 0:00:46.7]} 27... Rxe1
{[%clk 0:00:39.1]} 28. Rxe1 {[%clk 0:00:48]} 28... Kf7 {[%clk 0:00:40.3]} 29.
Bf3 {[%clk 0:00:45.7]} 29... Kf6 {[%clk 0:00:40.5]} 30. Kc1 {[%clk 0:00:43.1]}
30... Ra1+ {[%clk 0:00:37.6]} 31. Kd2 {[%clk 0:00:44]} 31... Ra2 {[%clk
0:00:39.5]} 32. Rb1 {[%clk 0:00:41.5]} 32... Bd4 {[%clk 0:00:40.7]} 33. Kd3
{[%clk 0:00:38.4]} 33... Bxb2 {[%clk 0:00:39.9]} 34. Re1 {[%clk 0:00:22.9]}
34... Ra5 {[%clk 0:00:39.8]} 35. Rf1 {[%clk 0:00:20.7]} 35... e5 {[%clk
0:00:37.1]} 36. Bg4 {[%clk 0:00:21.4]} 36... e4+ {[%clk 0:00:38.4]} 37. Ke2
{[%clk 0:00:20.6]} 37... d4 {[%clk 0:00:39.8]} 38. Bh3 {[%clk 0:00:20.7]} 38...
h5 {[%clk 0:00:38]} 39. Bg2 {[%clk 0:00:18.5]} 39... Ke5 {[%clk 0:00:39.3]} 40.
Bh3 {[%clk 0:00:19.5]} 40... Kf6 {[%clk 0:00:40.1]} 41. Bg2 {[%clk 0:00:20.4]}
41... Ke6 {[%clk 0:00:40.5]} 42. Bh3 {[%clk 0:00:17.9]} 42... Rc5 {[%clk
0:00:41.2]} 43. Kd2 {[%clk 0:00:18.8]} 43... Bc3+ {[%clk 0:00:42]} 44. Kd1
{[%clk 0:00:19.5]} 44... Ra5 {[%clk 0:00:32.3]} 45. Ke2 {[%clk 0:00:20.4]} 45...
Kf6 {[%clk 0:00:33.1]} 46. Rf2 {[%clk 0:00:19.5]} 46... Kg5 {[%clk 0:00:28.1]}
47. Rf1 {[%clk 0:00:19]} 47... h4 {[%clk 0:00:28.6]} 48. Rf2 {[%clk 0:00:19.5]}
48... hxg3 {[%clk 0:00:29.9]} 49. hxg3 {[%clk 0:00:19.5]} 49... Ra2 {[%clk
0:00:15]} 50. Rxf5+ {[%clk 0:00:12.3]} 50... Kg6 {[%clk 0:00:16.3]} 51. Kd1
{[%clk 0:00:12.5]} 51... d3 {[%clk 0:00:13.2]} 52. cxd3 {[%clk 0:00:03.4]} 52...
exd3 {[%clk 0:00:15.1]} 0-1

[Event "*** Titled Tuesday 3|2 Blitz"]
[Site "Chess.com"]
[Date "2017.05.02"]
[Round "4"]
[White "PowerThinking2650"]
[Black "Enzy63"]
[Result "1-0"]
[WhiteElo "2187"]
[BlackElo "2035"]
[TimeControl "180+2"]
[EndTime "13:50:19 PDT"]
[Termination "PowerThinking2650 won by resignation"]

1. e4 {[%clk 0:03:02]} 1... e5 {[%clk 0:03:00.5]} 2. Nf3 {[%clk 0:03:02.6]} 2...
Nc6 {[%clk 0:03:01.5]} 3. Nc3 {[%clk 0:03:04]} 3... Nf6 {[%clk 0:02:53.2]} 4. d4
{[%clk 0:03:04.7]} 4... exd4 {[%clk 0:02:53.6]} 5. Nxd4 {[%clk 0:03:06.6]} 5...
Bb4 {[%clk 0:02:54.3]} 6. Nxc6 {[%clk 0:03:08.1]} 6... bxc6 {[%clk 0:02:56.2]}
7. Bd3 {[%clk 0:03:09.2]} 7... d5 {[%clk 0:02:54.2]} 8. exd5 {[%clk 0:03:09.5]}
8... cxd5 {[%clk 0:02:55.3]} 9. O-O {[%clk 0:03:09.9]} 9... O-O {[%clk 0:02:56]}
10. Bg5 {[%clk 0:03:11.3]} 10... c6 {[%clk 0:02:57.3]} 11. Qf3 {[%clk
0:03:12.5]} 11... h6 {[%clk 0:02:45.1]} 12. Bxf6 {[%clk 0:03:13.1]} 12... Qxf6
{[%clk 0:02:46.2]} 13. Qxf6 {[%clk 0:03:13.8]} 13... gxf6 {[%clk 0:02:48.1]} 14.
Ne2 {[%clk 0:03:14.2]} 14... Bd6 {[%clk 0:02:24.9]} 15. Rab1 {[%clk 0:03:05.6]}
15... Be6 {[%clk 0:02:16.7]} 16. b4 {[%clk 0:03:05]} 16... Rfb8 {[%clk
0:02:09.6]} 17. c3 {[%clk 0:03:00.6]} 17... a5 {[%clk 0:02:06.7]} 18. b5 {[%clk
0:02:58.1]} 18... cxb5 {[%clk 0:01:53]} 19. Bxb5 {[%clk 0:02:50.9]} 19... Rb6
{[%clk 0:01:48.1]} 20. a4 {[%clk 0:02:48.3]} 20... Rc8 {[%clk 0:01:35.6]} 21.
Rfc1 {[%clk 0:02:43.1]} 21... Be5 {[%clk 0:01:32.8]} 22. Nd4 {[%clk 0:02:38.3]}
22... Rc7 {[%clk 0:01:10]} 23. g3 {[%clk 0:02:37]} 23... Rcb7 {[%clk 0:00:56.1]}
24. Kg2 {[%clk 0:02:34.6]} 24... Bd7 {[%clk 0:00:51.4]} 25. Kf3 {[%clk
0:01:07.7]} 25... Bxd4 {[%clk 0:00:49.8]} 26. cxd4 {[%clk 0:01:08.8]} 26... Bxb5
{[%clk 0:00:51.4]} 27. axb5 {[%clk 0:01:05.6]} 27... Rxb5 {[%clk 0:00:52.4]} 28.
Ra1 {[%clk 0:00:51.2]} 28... Re7 {[%clk 0:00:41.4]} 29. Rc5 {[%clk 0:00:49.4]}
29... Rxc5 {[%clk 0:00:27.2]} 30. dxc5 {[%clk 0:00:50.2]} 30... Ra7 {[%clk
0:00:27.4]} 31. Ke3 {[%clk 0:00:50.8]} 31... Kf8 {[%clk 0:00:23.1]} 32. Kd4
{[%clk 0:00:51.5]} 32... Ke7 {[%clk 0:00:21.5]} 33. Kxd5 {[%clk 0:00:52]} 33...
Kd7 {[%clk 0:00:22.8]} 34. Ra4 {[%clk 0:00:47.2]} 34... Kc7 {[%clk 0:00:22.7]}
35. g4 {[%clk 0:00:42.1]} 35... Ra8 {[%clk 0:00:22.9]} 36. Rf4 {[%clk
0:00:24.4]} 36... a4 {[%clk 0:00:16.4]} 37. Rxf6 {[%clk 0:00:25.3]} 37... Rd8+
{[%clk 0:00:14.9]} 38. Kc4 {[%clk 0:00:25.1]} 38... a3 {[%clk 0:00:16.4]} 39.
Ra6 {[%clk 0:00:21.3]} 39... Rd2 {[%clk 0:00:17.2]} 40. Ra7+ {[%clk 0:00:17.9]}
40... Kc6 {[%clk 0:00:17.6]} 41. Ra6+ {[%clk 0:00:18.8]} 41... Kc7 {[%clk
0:00:17.9]} 42. Rxa3 {[%clk 0:00:16.7]} 42... Rxf2 {[%clk 0:00:18]} 43. Rh3
{[%clk 0:00:16.6]} 43... Rf6 {[%clk 0:00:16.1]} 44. Kb5 {[%clk 0:00:15.8]} 44...
Kb7 {[%clk 0:00:15.7]} 45. Rd3 {[%clk 0:00:14.3]} 45... Rg6 {[%clk 0:00:08.7]}
46. Rd7+ {[%clk 0:00:14.3]} 46... Kc8 {[%clk 0:00:09.7]} 47. Rxf7 {[%clk
0:00:15.2]} 47... Rxg4 {[%clk 0:00:10.1]} 48. Kb6 {[%clk 0:00:16.2]} 48... Rg1
{[%clk 0:00:07.4]} 49. Rf8+ {[%clk 0:00:14.8]} 49... Kd7 {[%clk 0:00:08.5]} 50.
c6+ {[%clk 0:00:16.1]} 50... Ke7 {[%clk 0:00:08.8]} 51. Rh8 {[%clk 0:00:15.5]}
51... Rb1+ {[%clk 0:00:09.4]} 52. Kc7 {[%clk 0:00:16.5]} 1-0

[Event "*** Titled Tuesday 3|2 Blitz"]
[Site "Chess.com"]
[Date "2017.05.02"]
[Round "4"]
[White "the_drake"]
[Black "1lec"]
[Result "0-1"]
[WhiteElo "2190"]
[BlackElo "2070"]
[TimeControl "180+2"]
[EndTime "13:50:40 PDT"]
[Termination "1lec won by resignation"]

1. e4 {[%clk 0:02:49.2]} 1... c5 {[%clk 0:02:59.9]} 2. Nf3 {[%clk 0:02:49.6]}
2... d6 {[%clk 0:03:00.1]} 3. d4 {[%clk 0:02:51.3]} 3... cxd4 {[%clk 0:03:01.4]}
4. Nxd4 {[%clk 0:02:53.1]} 4... Nf6 {[%clk 0:03:02.9]} 5. Nc3 {[%clk 0:02:54.6]}
5... a6 {[%clk 0:03:04.4]} 6. Be3 {[%clk 0:02:56]} 6... e5 {[%clk 0:03:05.3]} 7.
Nf3 {[%clk 0:02:57.1]} 7... Be7 {[%clk 0:03:03.4]} 8. Bc4 {[%clk 0:02:57.9]}
8... O-O {[%clk 0:02:50.9]} 9. O-O {[%clk 0:02:58.5]} 9... Be6 {[%clk
0:02:41.7]} 10. Bxe6 {[%clk 0:02:58.2]} 10... fxe6 {[%clk 0:02:43.6]} 11. Ng5
{[%clk 0:02:59.2]} 11... Qd7 {[%clk 0:02:35.6]} 12. b3 {[%clk 0:02:52.3]} 12...
b5 {[%clk 0:02:28.3]} 13. a4 {[%clk 0:02:45.6]} 13... b4 {[%clk 0:02:28.2]} 14.
Na2 {[%clk 0:02:43.6]} 14... Nc6 {[%clk 0:02:28.3]} 15. c3 {[%clk 0:02:41.9]}
15... h6 {[%clk 0:02:22.8]} 16. Nf3 {[%clk 0:02:39.4]} 16... Nxe4 {[%clk
0:02:19.6]} 17. cxb4 {[%clk 0:02:39.5]} 17... Rab8 {[%clk 0:02:08.8]} 18. Re1
{[%clk 0:02:25.4]} 18... Nf6 {[%clk 0:01:43.7]} 19. Qd2 {[%clk 0:02:13]} 19...
Nd5 {[%clk 0:01:39.3]} 20. Rad1 {[%clk 0:01:57.2]} 20... e4 {[%clk 0:00:48.6]}
21. Nd4 {[%clk 0:01:49.2]} 21... Ncxb4 {[%clk 0:00:49.6]} 22. Nxb4 {[%clk
0:01:44.6]} 22... Nxb4 {[%clk 0:00:48.3]} 23. Bxh6 {[%clk 0:01:33.8]} 23... Nd3
{[%clk 0:00:27.1]} 24. Rxe4 {[%clk 0:01:17.2]} 24... Nxf2 {[%clk 0:00:28.1]} 25.
Rxe6 {[%clk 0:01:00.6]} 25... Nxd1 {[%clk 0:00:22.2]} 26. Qxd1 {[%clk
0:00:59.9]} 26... Bf6 {[%clk 0:00:10.2]} 27. Re4 {[%clk 0:00:20.6]} 27... gxh6
{[%clk 0:00:10]} 28. Rg4+ {[%clk 0:00:19.5]} 28... Kh7 {[%clk 0:00:08.9]} 29.
Qd3+ {[%clk 0:00:19.4]} 29... Kh8 {[%clk 0:00:09.2]} 30. Nf5 {[%clk 0:00:20.5]}
30... Qxf5 {[%clk 0:00:04.9]} 31. Re4 {[%clk 0:00:08.3]} 31... Bd4+ {[%clk
0:00:04.6]} 32. Qxd4+ {[%clk 0:00:06.8]} 32... Qf6 {[%clk 0:00:05.2]} 33. Qxf6+
{[%clk 0:00:03.9]} 33... Rxf6 {[%clk 0:00:07.1]} 34. g3 {[%clk 0:00:05.3]} 34...
Rxb3 {[%clk 0:00:06.9]} 35. Re8+ {[%clk 0:00:06.9]} 35... Kg7 {[%clk 0:00:08]}
36. Ra8 {[%clk 0:00:08.6]} 36... d5 {[%clk 0:00:08.1]} 37. Ra7+ {[%clk
0:00:08.9]} 37... Kg6 {[%clk 0:00:09]} 38. Kg2 {[%clk 0:00:10.6]} 38... Re6
{[%clk 0:00:09.1]} 39. Kh3 {[%clk 0:00:12.5]} 39... d4 {[%clk 0:00:10]} 40. Rd7
{[%clk 0:00:13.9]} 40... d3 {[%clk 0:00:11.2]} 41. Rd4 {[%clk 0:00:14.5]} 41...
Kf6 {[%clk 0:00:10]} 42. Kg4 {[%clk 0:00:15.9]} 42... Ke5 {[%clk 0:00:10.7]} 43.
Rd8 {[%clk 0:00:07.7]} 43... Rd6 {[%clk 0:00:11.9]} 44. Re8+ {[%clk 0:00:08.9]}
44... Kd4 {[%clk 0:00:13]} 45. Re1 {[%clk 0:00:10]} 45... d2 {[%clk 0:00:14]}
46. Rd1 {[%clk 0:00:11.6]} 46... Ke3 {[%clk 0:00:15.2]} 47. h4 {[%clk
0:00:09.1]} 47... Ke2 {[%clk 0:00:16.2]} 48. Rg1 {[%clk 0:00:09.3]} 48... d1=Q
{[%clk 0:00:16.7]} 49. Rg2+ {[%clk 0:00:10.8]} 49... Kf1+ {[%clk 0:00:18]} 50.
Kh3 {[%clk 0:00:12]} 50... Qg4+ {[%clk 0:00:12.2]} 51. Kh2 {[%clk 0:00:12.4]}
51... Rxg3 {[%clk 0:00:05.3]} 52. Rxg3 {[%clk 0:00:13.8]} 52... Qxg3+ {[%clk
0:00:05.9]} 53. Kxg3 {[%clk 0:00:14.2]} 53... Rd5 {[%clk 0:00:07.3]} 54. Kg4
{[%clk 0:00:13.7]} 54... Ke2 {[%clk 0:00:08.6]} 55. Kf4 {[%clk 0:00:14.7]} 55...
Kd3 {[%clk 0:00:09.6]} 0-1

[Event "*** Titled Tuesday 3|2 Blitz"]
[Site "Chess.com"]
[Date "2017.05.02"]
[Round "4"]
[White "NewBornNow"]
[Black "Blitzstream"]
[Result "1-0"]
[WhiteElo "2557"]
[BlackElo "2456"]
[TimeControl "180+2"]
[EndTime "13:50:41 PDT"]
[Termination "NewBornNow won by resignation"]

1. e4 {[%clk 0:03:02]} 1... g6 {[%clk 0:02:57.9]} 2. d4 {[%clk 0:03:01.9]} 2...
Bg7 {[%clk 0:02:59.1]} 3. c4 {[%clk 0:03:02.9]} 3... e6 {[%clk 0:03:00.3]} 4.
Nc3 {[%clk 0:03:03.4]} 4... Ne7 {[%clk 0:03:01.5]} 5. h4 {[%clk 0:03:03.2]} 5...
h6 {[%clk 0:03:00.9]} 6. Be3 {[%clk 0:03:01.8]} 6... b6 {[%clk 0:03:02.1]} 7.
Qd2 {[%clk 0:03:02.1]} 7... Bb7 {[%clk 0:03:02.8]} 8. f4 {[%clk 0:03:00.9]} 8...
d6 {[%clk 0:03:03.7]} 9. h5 {[%clk 0:03:00.4]} 9... Nd7 {[%clk 0:03:02.5]} 10.
hxg6 {[%clk 0:02:59.8]} 10... fxg6 {[%clk 0:03:01.4]} 11. Bd3 {[%clk 0:03:00.6]}
11... a6 {[%clk 0:02:55.7]} 12. Nf3 {[%clk 0:03:00.5]} 12... c5 {[%clk
0:02:38.8]} 13. d5 {[%clk 0:02:41.5]} 13... exd5 {[%clk 0:02:25.5]} 14. exd5
{[%clk 0:02:40.8]} 14... Qc7 {[%clk 0:02:24.2]} 15. Qc2 {[%clk 0:02:32.1]} 15...
O-O-O {[%clk 0:02:18.1]} 16. Bxg6 {[%clk 0:02:31]} 16... b5 {[%clk 0:02:09.2]}
17. cxb5 {[%clk 0:02:18.5]} 17... axb5 {[%clk 0:02:01.6]} 18. a4 {[%clk
0:02:12.4]} 18... Bxc3+ {[%clk 0:00:54.7]} 19. bxc3 {[%clk 0:02:11.6]} 19...
Nxd5 {[%clk 0:00:55.8]} 20. Bd2 {[%clk 0:02:10.7]} 20... bxa4 {[%clk 0:00:42.8]}
21. Rxa4 {[%clk 0:02:02.8]} 21... N7b6 {[%clk 0:00:43.2]} 22. Ra2 {[%clk
0:01:54.1]} 22... Nc4 {[%clk 0:00:35.2]} 23. Kf2 {[%clk 0:01:51]} 23... Rhg8
{[%clk 0:00:30.3]} 24. Rb1 {[%clk 0:01:42.7]} 24... Ndb6 {[%clk 0:00:21.5]} 25.
Bf5+ {[%clk 0:01:32.1]} 25... Kb8 {[%clk 0:00:22.4]} 26. Be4 {[%clk 0:01:14.8]}
26... Qg7 {[%clk 0:00:22.1]} 27. g4 {[%clk 0:00:55.7]} 27... Qxg4 {[%clk
0:00:22.4]} 28. Rg1 {[%clk 0:00:55]} 28... Qh3 {[%clk 0:00:18.2]} 29. Bxb7
{[%clk 0:00:52.5]} 29... Rxg1 {[%clk 0:00:17.4]} 30. Nxg1 {[%clk 0:00:52.8]}
30... Qh2+ {[%clk 0:00:18.1]} 31. Bg2 {[%clk 0:00:50.8]} 31... Rg8 {[%clk
0:00:16.8]} 32. Qe4 {[%clk 0:00:50.1]} 32... d5 {[%clk 0:00:17]} 33. Qf3 {[%clk
0:00:49.2]} 33... Qh4+ {[%clk 0:00:17]} 34. Kf1 {[%clk 0:00:47.5]} 34... Rf8
{[%clk 0:00:18.1]} 35. f5 {[%clk 0:00:45.4]} 35... Qf6 {[%clk 0:00:17.3]} 36.
Bf4+ {[%clk 0:00:43.2]} 36... Kb7 {[%clk 0:00:18.2]} 37. Bh3 {[%clk 0:00:30.4]}
37... Qc6 {[%clk 0:00:19.2]} 38. Re2 {[%clk 0:00:29.3]} 38... Qb5 {[%clk
0:00:19.7]} 39. Kg2 {[%clk 0:00:29]} 39... Qb1 {[%clk 0:00:16.7]} 40. Re7+
{[%clk 0:00:26]} 40... Ka6 {[%clk 0:00:17.6]} 41. Ne2 {[%clk 0:00:22.1]} 41...
Qe1 {[%clk 0:00:15.4]} 42. Bg3 {[%clk 0:00:21.6]} 42... Qd2 {[%clk 0:00:16.2]}
43. Qf4 {[%clk 0:00:20.9]} 43... Qb2 {[%clk 0:00:12.9]} 44. f6 {[%clk
0:00:20.1]} 44... d4 {[%clk 0:00:08.7]} 45. cxd4 {[%clk 0:00:20.4]} 45... cxd4
{[%clk 0:00:10.6]} 46. Qxd4 {[%clk 0:00:20.2]} 46... Rxf6 {[%clk 0:00:11.7]} 47.
Qxb2 {[%clk 0:00:19.2]} 47... Nxb2 {[%clk 0:00:13.6]} 48. Nf4 {[%clk 0:00:19.4]}
48... N2c4 {[%clk 0:00:13.4]} 49. Kh2 {[%clk 0:00:19.4]} 49... Kb5 {[%clk
0:00:14.5]} 50. Bf1 {[%clk 0:00:19.7]} 50... Kc5 {[%clk 0:00:15.4]} 51. Bf2+
{[%clk 0:00:20]} 51... Kd6 {[%clk 0:00:15.5]} 52. Re4 {[%clk 0:00:19.9]} 52...
Nd2 {[%clk 0:00:14.2]} 53. Rd4+ {[%clk 0:00:19.8]} 53... Ke5 {[%clk 0:00:15.3]}
54. Rxd2 {[%clk 0:00:20.5]} 54... Kxf4 {[%clk 0:00:14]} 55. Bd4 {[%clk
0:00:21.2]} 55... Rd6 {[%clk 0:00:07.2]} 56. Be3+ {[%clk 0:00:20.6]} 56... Ke5
{[%clk 0:00:07.2]} 57. Rxd6 {[%clk 0:00:21.3]} 57... Kxd6 {[%clk 0:00:09.1]} 58.
Bxb6 {[%clk 0:00:22.2]} 58... Ke5 {[%clk 0:00:11]} 59. Be3 {[%clk 0:00:23.5]}
59... h5 {[%clk 0:00:11.2]} 60. Kg3 {[%clk 0:00:24.5]} 60... Ke4 {[%clk
0:00:12.3]} 61. Bg5 {[%clk 0:00:25.2]} 61... Kf5 {[%clk 0:00:14.2]} 62. Kh4
{[%clk 0:00:26.5]} 62... Kg6 {[%clk 0:00:16]} 63. Bd3+ {[%clk 0:00:27.5]} 1-0

[Event "*** Titled Tuesday 3|2 Blitz"]
[Site "Chess.com"]
[Date "2017.05.02"]
[Round "4"]
[White "DiogenesSinopeus"]
[Black "SidArun"]
[Result "1-0"]
[WhiteElo "2230"]
[BlackElo "2065"]
[TimeControl "180+2"]
[EndTime "13:50:52 PDT"]
[Termination "DiogenesSinopeus won by resignation"]

1. d4 {[%clk 0:03:02]} 1... Nf6 {[%clk 0:03:00.6]} 2. c4 {[%clk 0:03:03.2]} 2...
c5 {[%clk 0:03:02]} 3. d5 {[%clk 0:03:03.8]} 3... e6 {[%clk 0:03:03.6]} 4. Nc3
{[%clk 0:03:04.7]} 4... exd5 {[%clk 0:03:05.3]} 5. cxd5 {[%clk 0:03:06.6]} 5...
d6 {[%clk 0:03:07.2]} 6. g3 {[%clk 0:03:08]} 6... g6 {[%clk 0:03:08.8]} 7. Bg2
{[%clk 0:03:09.4]} 7... Bg7 {[%clk 0:03:10.7]} 8. Nf3 {[%clk 0:03:10.9]} 8...
O-O {[%clk 0:03:12.4]} 9. O-O {[%clk 0:03:11.7]} 9... Na6 {[%clk 0:03:14.1]} 10.
Bf4 {[%clk 0:03:11.7]} 10... Nc7 {[%clk 0:03:15.3]} 11. e4 {[%clk 0:03:07.6]}
11... Nh5 {[%clk 0:03:16]} 12. Bg5 {[%clk 0:03:07.3]} 12... Qd7 {[%clk
0:03:12.1]} 13. a4 {[%clk 0:03:02.5]} 13... f5 {[%clk 0:03:09.8]} 14. e5 {[%clk
0:02:35.5]} 14... dxe5 {[%clk 0:03:06.9]} 15. d6 {[%clk 0:02:34.9]} 15... Ne6
{[%clk 0:03:06.9]} 16. Be7 {[%clk 0:02:35.2]} 16... Nd4 {[%clk 0:02:59]} 17.
Bxf8 {[%clk 0:02:26.5]} 17... Kxf8 {[%clk 0:02:59.1]} 18. Nb5 {[%clk 0:01:25.1]}
18... a6 {[%clk 0:02:52.7]} 19. Nbxd4 {[%clk 0:01:04.7]} 19... cxd4 {[%clk
0:02:53.1]} 20. Qb3 {[%clk 0:01:00.5]} 20... Qxd6 {[%clk 0:02:53.2]} 21. Ng5
{[%clk 0:01:01.2]} 21... Qe7 {[%clk 0:02:37.9]} 22. Nxh7+ {[%clk 0:01:02.4]}
22... Ke8 {[%clk 0:02:38.6]} 23. Rac1 {[%clk 0:00:50.9]} 23... Be6 {[%clk
0:01:57.8]} 24. Bd5 {[%clk 0:00:45.5]} 24... Bxd5 {[%clk 0:01:35.1]} 25. Qxd5
{[%clk 0:00:47.4]} 25... Rd8 {[%clk 0:01:35.9]} 26. Qb3 {[%clk 0:00:28.5]} 26...
e4 {[%clk 0:01:03.6]} 27. Rfe1 {[%clk 0:00:13.3]} 27... d3 {[%clk 0:00:52.6]}
28. Rcd1 {[%clk 0:00:13.4]} 28... Rd7 {[%clk 0:00:23.8]} 29. Qg8+ {[%clk
0:00:12.3]} 29... Bf8 {[%clk 0:00:24.8]} 30. Qxg6+ {[%clk 0:00:13.1]} 30... Qf7
{[%clk 0:00:26.3]} 31. Qxf7+ {[%clk 0:00:03.4]} 31... Kxf7 {[%clk 0:00:27.4]}
32. Ng5+ {[%clk 0:00:04.3]} 32... Kg6 {[%clk 0:00:29.1]} 33. h4 {[%clk
0:00:05.2]} 33... Bb4 {[%clk 0:00:29.4]} 34. Rf1 {[%clk 0:00:04]} 34... Bc5
{[%clk 0:00:30]} 35. Kg2 {[%clk 0:00:04.7]} 35... f4 {[%clk 0:00:29.9]} 36. Nxe4
{[%clk 0:00:05.2]} 36... Bb6 {[%clk 0:00:21.6]} 37. g4 {[%clk 0:00:06.6]} 37...
Nf6 {[%clk 0:00:22.2]} 38. h5+ {[%clk 0:00:07]} 38... Kg7 {[%clk 0:00:22.2]} 39.
Nxf6 {[%clk 0:00:07.7]} 39... Kxf6 {[%clk 0:00:22.9]} 40. Rfe1 {[%clk
0:00:06.2]} 40... Ba5 {[%clk 0:00:14.9]} 41. Re4 {[%clk 0:00:06.3]} 41... Bc7
{[%clk 0:00:13]} 42. Rc4 {[%clk 0:00:04.5]} 42... d2 {[%clk 0:00:14.1]} 43. Rc2
{[%clk 0:00:04.7]} 43... Ba5 {[%clk 0:00:14.9]} 44. Rc4 {[%clk 0:00:03.3]} 44...
Bc7 {[%clk 0:00:12.2]} 45. Kf3 {[%clk 0:00:02.8]} 45... Rd3+ {[%clk 0:00:12.5]}
46. Kg2 {[%clk 0:00:04.3]} 46... Rd7 {[%clk 0:00:13.3]} 47. h6 {[%clk
0:00:05.7]} 47... Kg6 {[%clk 0:00:14.2]} 48. Rc2 {[%clk 0:00:02.7]} 48... Ba5
{[%clk 0:00:14.5]} 49. Rc5 {[%clk 0:00:03.2]} 49... Bb6 {[%clk 0:00:13.9]} 50.
Rc4 {[%clk 0:00:03.2]} 50... Kxh6 {[%clk 0:00:14.3]} 51. Rxf4 {[%clk 0:00:03.3]}
51... Kg5 {[%clk 0:00:16.2]} 52. Re4 {[%clk 0:00:03.3]} 52... Ba5 {[%clk
0:00:14]} 53. b4 {[%clk 0:00:03.9]} 53... Bc7 {[%clk 0:00:15.2]} 54. Re2 {[%clk
0:00:05.1]} 54... Bf4 {[%clk 0:00:16.8]} 55. f3 {[%clk 0:00:04.5]} 55... Rd4
{[%clk 0:00:17.7]} 56. Re4 {[%clk 0:00:05.5]} 56... Rxe4 {[%clk 0:00:17.4]} 57.
fxe4 {[%clk 0:00:06.6]} 57... Kxg4 {[%clk 0:00:19]} 58. Kf2 {[%clk 0:00:07.8]}
58... b5 {[%clk 0:00:18.8]} 59. axb5 {[%clk 0:00:06.8]} 59... axb5 {[%clk
0:00:20.3]} 60. Ke2 {[%clk 0:00:07.6]} 60... Bd6 {[%clk 0:00:17.8]} 61. Rxd2
{[%clk 0:00:07.7]} 61... Bxb4 {[%clk 0:00:19]} 62. Rb2 {[%clk 0:00:08.4]} 62...
Bc3 {[%clk 0:00:19.2]} 63. Rxb5 {[%clk 0:00:09.5]} 63... Kf4 {[%clk 0:00:20.9]}
64. Kd3 {[%clk 0:00:11.1]} 64... Be5 {[%clk 0:00:19.8]} 65. Rb7 {[%clk
0:00:11.5]} 1-0